bitfinex/quotes_BTCUSD_20260104
["timestamp","ask_amount","ask_price","bid_price","bid_amount"]
[1767538145298,0.06579668,91190.0,91186.0,0.01096659]
[1767538145685,0.06579608,91191.0,91187.0,0.01096647]
[1767538145900,0.00996711,91190.0,91186.0,0.06579912]
[1767538146102,0.06579605,91191.0,91187.0,0.06579878]
[1767538146328,0.11126062,91191.0,91187.0,0.06579878]
[1767538146761,0.06579605,91191.0,91187.0,0.06579878]
[1767538147563,0.06579605,91191.0,91187.0,0.01096647]
[1767538148628,0.06579605,91191.0,91188.0,0.04630334]
[1767538148832,0.06579605,91191.0,91188.0,0.04625809]
[1767538150243,0.05483072,91190.0,91188.0,0.04525909]
[1767538150446,0.0547421,91190.0,91188.0,0.04525909]
[1767538150665,0.05483068,91190.0,91188.0,0.04525909]
[1767538150862,0.05474207,91190.0,91188.0,0.04525909]
[1767538151022,0.05483117,91189.0,91188.0,0.04525909]
[1767538151227,0.05474207,91190.0,91188.0,0.04525909]
[1767538151640,0.05483118,91189.0,91185.0,0.06580022]
[1767538151860,0.05483146,91189.0,91185.0,0.06580022]
[1767538152969,0.06570818,91190.0,91185.0,0.06580022]
[1767538153117,0.06570818,91190.0,91186.0,0.06579947]
[1767538153331,0.06570818,91190.0,91187.0,0.04630334]
[1767538153982,0.06579601,91191.0,91187.0,0.1011356]
[1767538154161,0.11126058,91191.0,91190.0,0.000999]
[1767538154521,0.11126058,91191.0,91187.0,0.06579873]
[1767538155288,0.06579601,91191.0,91188.0,0.04630334]
[1767538155489,0.04446557,91191.0,91187.0,0.06579873]
[1767538155916,0.11026158,91191.0,91187.0,0.06579873]
[1767538156096,0.01096599,91191.0,91187.0,0.06579873]
[1767538156301,0.06579567,91192.0,91189.0,0.04630334]
[1767538157378,0.06579567,91192.0,91188.0,0.01096635]
[1767538157578,0.04546457,91191.0,91188.0,0.01096635]
[1767538158078,0.06579567,91192.0,91188.0,0.01096635]
[1767538158533,0.01096587,91192.0,91188.0,0.06579783]
[1767538158950,0.01096599,91191.0,91187.0,0.0657983]
[1767538159148,0.06579638,91192.0,91188.0,0.05483173]
[1767538159356,0.06579638,91192.0,91187.0,0.0657983]
[1767538159683,0.06579604,91191.0,91187.0,0.0657983]
[1767538159829,0.06579604,91191.0,91188.0,0.04630334]
[1767538160035,0.06570742,91191.0,91188.0,0.04630334]
[1767538160555,0.01096587,91192.0,91189.0,0.04630334]
[1767538160944,0.05482894,91193.0,91190.0,0.04630334]
[1767538161140,0.0548295,91192.0,91190.0,0.04630334]
[1767538162352,0.05482997,91191.0,91190.0,0.04530434]
[1767538162534,0.05482997,91191.0,91190.0,0.0191879]
[1767538163622,0.06579796,91189.0,91185.0,0.05727005]
[1767538164046,0.05483237,91187.0,91185.0,0.04630334]
[1767538164494,0.05483297,91186.0,91185.0,0.04630334]
[1767538164728,0.05474434,91186.0,91185.0,0.04630334]
[1767538164925,0.05388628,91186.0,91185.0,0.04630334]
[1767538166552,0.06579818,91188.0,91186.0,0.000999]
[1767538166758,0.06579782,91189.0,91186.0,0.04630334]
[1767538166962,0.06579749,91189.0,91186.0,0.04630334]
[1767538167277,0.06579611,91191.0,91187.0,0.04630334]
[1767538167489,0.06579543,91192.0,91189.0,0.04630334]
[1767538168055,0.2193101,91196.0,91181.0,0.01096719]
[1767538168056,0.01096635,91188.0,91181.0,0.01096719]
[1767538168233,0.06579816,91188.0,91183.0,0.05483475]
[1767538168561,0.01096647,91187.0,91184.0,0.04630334]
[1767538168768,0.04546457,91186.0,91183.0,0.0658017]
[1767538169280,0.06579816,91188.0,91184.0,0.06580061]
[1767538169281,0.11126273,91188.0,91184.0,0.06580061]
[1767538169686,0.11126055,91191.0,91186.0,0.01096659]
[1767538169930,0.06579598,91191.0,91187.0,0.05726981]
[1767538171289,0.06579598,91191.0,91188.0,0.04603793]
[1767538173415,0.06579676,91190.0,91184.0,0.01096683]
[1767538173837,0.01096611,91190.0,91186.0,0.10378961]
[1767538174238,0.01096611,91190.0,91186.0,0.1147562]
[1767538174462,0.06579675,91190.0,91186.0,0.05992364]
[1767538174598,0.01096611,91190.0,91186.0,0.11475653]
[1767538175089,0.06579687,91190.0,91187.0,0.04895705]
[1767538175401,0.05483124,91189.0,91187.0,0.04895705]
[1767538175606,0.06579687,91190.0,91187.0,0.04895705]
[1767538175809,0.05483127,91189.0,91187.0,0.04895705]
[1767538177332,0.01096623,91189.0,91184.0,0.04895705]
[1767538177504,0.000999,91187.0,91184.0,0.04895705]
[1767538177740,0.06579886,91187.0,91184.0,0.04895705]
[1767538179150,0.06579971,91186.0,91182.0,0.1147584]
[1767538179288,0.06579886,91187.0,91183.0,0.059924]
[1767538179670,0.06579886,91187.0,91183.0,0.11475836]
[1767538179925,0.06579886,91187.0,91184.0,0.04895705]
[1767538180733,0.01096611,91190.0,91185.0,0.05483358]
[1767538181032,0.01096611,91190.0,91184.0,0.05992388]
[1767538181033,0.01096623,91189.0,91186.0,0.04895705]
[1767538181252,0.06579782,91189.0,91186.0,0.04895705]
[1767538181449,0.06579782,91189.0,91184.0,0.06580098]
[1767538181646,0.06579678,91190.0,91185.0,0.06580013]
[1767538182147,0.06579752,91189.0,91185.0,0.11475718]
[1767538182596,0.06579752,91189.0,91185.0,0.06580013]
[1767538183763,0.06579752,91189.0,91185.0,0.06575488]
[1767538184997,0.06579752,91189.0,91185.0,0.01096671]
[1767538185619,0.06579752,91189.0,91185.0,0.01092146]
[1767538189536,0.06579752,91189.0,91185.0,0.01087622]
[1767538189765,0.06579752,91189.0,91185.0,0.06570949]
[1767538190450,0.01096623,91189.0,91185.0,0.06570949]
[1767538193614,0.06579698,91191.0,91187.0,0.06579882]
[1767538194650,0.01096611,91190.0,91186.0,0.01096659]
[1767538194993,0.06579677,91190.0,91186.0,0.01096659]
[1767538195477,0.01096611,91190.0,91186.0,0.06579917]
[1767538195682,0.06579683,91190.0,91186.0,0.01096659]
[1767538197466,0.11166074,91190.0,91186.0,0.01096659]
[1767538197674,0.06579745,91189.0,91185.0,0.06570966]
[1767538199291,0.06579745,91189.0,91179.0,0.02196]
[1767538199292,0.000999,91185.0,91182.0,0.06580212]
[1767538199447,0.00093026,91185.0,91183.0,0.05483459]
[1767538199856,0.01096647,91187.0,91183.0,0.06580154]
[1767538200260,0.06579821,91188.0,91184.0,0.06580088]
[1767538200821,0.06579821,91188.0,91183.0,0.06580154]
[1767538201020,0.06579834,91188.0,91183.0,0.05483459]
[1767538201221,0.06579834,91188.0,91182.0,0.0658014]
[1767538201222,0.01096659,91186.0,91182.0,0.0658014]
[1767538201425,0.01096659,91186.0,91179.0,0.03292743]
[1767538201426,0.01096695,91183.0,91179.0,0.03292743]
[1767538201636,0.06580035,91185.0,91180.0,0.05483623]
[1767538202055,0.01096671,91185.0,91181.0,0.05483567]
[1767538202255,0.01096599,91191.0,91187.0,0.01096647]
[1767538202498,0.06579642,91191.0,91187.0,0.0548323]
[1767538202975,0.01096611,91190.0,91186.0,0.06579912]
[1767538203307,0.01096587,91192.0,91190.0,6.9e-05]
[1767538203308,0.0657953,91192.0,91190.0,6.9e-05]
[1767538203457,0.0657953,91192.0,91190.0,0.04628017]
[1767538203679,0.0657953,91192.0,91190.0,0.04621117]
[1767538203868,0.01096527,91197.0,91193.0,0.04621117]
[1767538204114,0.06579219,91197.0,91192.0,0.06579522]
[1767538204315,0.06579219,91197.0,91192.0,0.06574998]
[1767538204751,0.01096567,91196.0,91192.0,0.00999063]
[1767538204871,0.06579275,91196.0,91191.0,0.06579584]
[1767538205069,0.01096567,91196.0,91192.0,0.01096587]
[1767538205268,2.8e-07,91196.0,91193.0,0.01096575]
[1767538205465,2.8e-07,91196.0,91195.0,0.05482756]
[1767538206028,0.0004,91199.0,91198.0,0.05482576]
[1767538206231,0.0004,91200.0,91199.0,0.05482516]
[1767538206384,0.05505337,91205.0,91201.0,0.05482391]
[1767538206385,0.06601768,91205.0,91201.0,0.05482391]
[1767538206588,0.000152,91203.0,91201.0,0.10098985]
[1767538206789,0.00023075,91205.0,91204.0,0.05482215]
[1767538206990,0.00023075,91205.0,91203.0,0.04621117]
[1767538207259,0.00023075,91205.0,91203.0,0.10103373]
[1767538207475,0.00023075,91205.0,91204.0,0.05482215]
[1767538208679,0.0004,91212.0,91209.0,0.01096383]
[1767538208972,0.0004,91212.0,91210.0,0.05481795]
[1767538209402,0.0004,91212.0,91211.0,0.05481794]
[1767538209616,0.0004,91218.0,91217.0,0.10102551]
[1767538209742,0.01151438,91221.0,91218.0,0.04621117]
[1767538209957,0.05481314,91219.0,91213.0,0.04621117]
[1767538210158,0.01096298,91216.0,91213.0,0.04621117]
[1767538210641,0.01096322,91214.0,91211.0,0.02196]
[1767538210846,0.01096407,91207.0,91204.0,0.02196]
[1767538211083,0.06578454,91207.0,91204.0,0.02196]
[1767538211289,0.01096358,91211.0,91207.0,0.05581928]
[1767538211648,0.06578126,91213.0,91208.0,0.05481954]
[1767538212056,0.06578126,91213.0,91209.0,0.01096383]
[1767538212250,0.06577918,91215.0,91210.0,0.01096371]
[1767538212459,0.01096286,91217.0,91213.0,0.000999]
[1767538212460,0.01096298,91216.0,91213.0,0.000999]
[1767538212666,0.06577807,91216.0,91213.0,0.000999]
[1767538212910,0.06577758,91217.0,91212.0,0.06578061]
[1767538213317,0.01096286,91217.0,91213.0,0.05481661]
[1767538213658,0.01096274,91218.0,91213.0,0.06577995]
[1767538213860,0.01096274,91218.0,91217.0,0.000999]
[1767538213992,0.01096274,91218.0,91213.0,0.06577995]
[1767538214195,0.000552,91221.0,91217.0,0.05717403]
[1767538214375,0.05527541,91221.0,91218.0,0.04621117]
[1767538214577,0.0661741,91222.0,91218.0,0.04621117]
[1767538215258,0.0004,91222.0,91218.0,0.04621117]
[1767538215474,0.06617171,91225.0,91222.0,0.000599]
[1767538215475,0.0113619,91225.0,91222.0,0.000599]
[1767538215629,0.0113619,91225.0,91221.0,0.05481194]
[1767538215630,0.06617148,91225.0,91221.0,0.05481194]
[1767538216015,0.06617155,91225.0,91221.0,0.05481194]
[1767538216433,0.06577248,91224.0,91219.0,0.06577536]
[1767538216891,0.06617155,91225.0,91220.0,0.0109625]
[1767538217121,0.0004,91225.0,91221.0,0.0657743]
[1767538217287,0.0661715,91225.0,91221.0,0.06577431]
[1767538217511,0.0004,91225.0,91222.0,0.06577345]
[1767538217922,0.0004,91225.0,91223.0,0.05481025]
[1767538218121,0.0004,91225.0,91224.0,0.05481013]
[1767538218442,0.03990629,91231.0,91226.0,0.06577044]
[1767538218662,0.05480659,91230.0,91226.0,0.06577044]
[1767538218958,0.01096142,91229.0,91225.0,0.0109619]
[1767538219176,0.0004,91232.0,91229.0,0.000199]
[1767538219355,0.0004,91232.0,91229.0,0.01096142]
[1767538219558,0.0496547,91231.0,91226.0,0.01096178]
[1767538219758,0.0496547,91230.0,91226.0,0.01096178]
[1767538220127,0.06576803,91230.0,91226.0,0.04621117]
[1767538220670,0.06576712,91231.0,91226.0,0.11198135]
[1767538221226,0.06576712,91231.0,91227.0,0.04621117]
[1767538221849,0.01136106,91232.0,91225.0,0.06577107]
[1767538221850,0.000601,91227.0,91225.0,0.06577114]
[1767538222045,0.0109613,91230.0,91226.0,0.02192]
[1767538222418,0.01136106,91232.0,91227.0,0.06576989]
[1767538222625,0.01096118,91231.0,91227.0,0.01096166]
[1767538222792,0.01096118,91231.0,91227.0,0.06576979]
[1767538223107,0.0661669,91232.0,91228.0,0.01096154]
[1767538223313,0.01136106,91232.0,91228.0,0.06557012]
[1767538224431,0.01096118,91231.0,91227.0,0.06576979]
[1767538224752,0.0109613,91230.0,91226.0,0.08769055]
[1767538224955,0.0109613,91230.0,91226.0,0.08769067]
[1767538225615,0.0657674,91231.0,91227.0,0.06576997]
[1767538225859,0.01096166,91227.0,91219.0,0.01096262]
[1767538226032,0.0496547,91223.0,91220.0,0.02196]
[1767538226233,0.01096202,91224.0,91220.0,0.08773462]
[1767538226533,0.01096202,91224.0,91220.0,0.0329225]
[1767538226534,0.03215187,91223.0,91220.0,0.0329225]
[1767538226780,0.03215187,91223.0,91220.0,0.02196]
[1767538226986,0.03215187,91223.0,91220.0,0.0329225]
[1767538226987,0.02108004,91223.0,91220.0,0.0329225]
[1767538227372,0.0496547,91222.0,91220.0,0.02196]
[1767538227611,0.0109619,91225.0,91223.0,0.0006573]
[1767538227825,0.06577161,91225.0,91223.0,0.0006573]
[1767538227959,0.02196,91224.0,91223.0,0.0006573]
[1767538230925,0.07677013,91224.0,91223.0,0.0006573]
[1767538231121,0.04502738,91225.0,91224.0,0.000999]
[1767538231468,0.04502738,91225.0,91223.0,0.0006573]
[1767538232259,0.07775589,91224.0,91223.0,0.0006573]
[1767538233545,0.03272851,91224.0,91223.0,0.0006573]
[1767538235789,0.03172951,91224.0,91223.0,0.0006573]
[1767538236082,0.06577106,91227.0,91224.0,0.04603762]
[1767538236313,0.0657691,91229.0,91224.0,0.11180973]
[1767538236524,0.0657691,91229.0,91225.0,0.04603762]
[1767538236525,0.06576935,91228.0,91225.0,0.04603762]
[1767538236960,0.06577002,91227.0,91223.0,3e-07]
[1767538237170,0.000342,91225.0,91223.0,0.04603792]
[1767538237375,0.000342,91225.0,91223.0,0.0219203]
[1767538237606,0.06577084,91226.0,91223.0,0.0219203]
[1767538238029,0.01096166,91227.0,91224.0,0.04603762]
[1767538238237,0.05480912,91226.0,91224.0,0.04569562]
[1767538238882,0.06577006,91227.0,91224.0,0.04569562]
[1767538240313,0.0109613,91230.0,91227.0,0.04703662]
[1767538240519,0.06607778,91232.0,91228.0,0.11180629]
[1767538240727,0.01096118,91231.0,91228.0,0.04603762]
[1767538241054,0.0109613,91230.0,91226.0,0.0569994]
[1767538241201,0.01096142,91229.0,91226.0,0.04603762]
[1767538241411,0.0548082,91228.0,91226.0,0.04603762]
[1767538241612,0.06569921,91230.0,91228.0,0.000999]
[1767538241840,0.06569921,91230.0,91226.0,0.0569994]
[1767538242022,0.06569921,91230.0,91226.0,0.11180825]
[1767538242881,0.06569921,91230.0,91227.0,0.04603762]
[1767538243656,0.0112724,91232.0,91231.0,0.10084355]
[1767538243657,0.00031134,91232.0,91231.0,0.10084355]
[1767538243858,0.00031134,91232.0,91231.0,0.05480593]
[1767538244072,0.000152,91239.0,91237.0,0.05480206]
[1767538244469,0.000152,91239.0,91238.0,0.05480172]
[1767538244685,0.04575651,91242.0,91238.0,0.06576206]
[1767538245253,0.04575651,91245.0,91242.0,0.01180686]
[1767538245453,0.04575651,91245.0,91244.0,0.05479812]
[1767538245671,0.0109589,91250.0,91247.0,0.04603762]
[1767538245881,0.000152,91247.0,91246.0,0.06575585]
[1767538246299,0.0109589,91250.0,91246.0,0.11179347]
[1767538246521,0.06598292,91253.0,91248.0,0.06575468]
[1767538246766,0.06575201,91252.0,91248.0,0.06575468]
[1767538247099,0.00010823,91252.0,91249.0,0.05699664]
[1767538247249,0.00010823,91252.0,91250.0,0.04603762]
[1767538247448,0.00010823,91252.0,91251.0,0.04603762]
[1767538247898,2.3e-07,91252.0,91250.0,0.04603762]
[1767538248059,2.3e-07,91252.0,91251.0,0.10083154]
[1767538249110,0.00023058,91253.0,91251.0,0.05479392]
[1767538249286,0.0109577,91260.0,91257.0,0.04603762]
[1767538249499,0.05478963,91259.0,91257.0,0.04599331]
[1767538249734,0.06574481,91262.0,91259.0,0.04603762]
[1767538249872,0.06574481,91262.0,91259.0,0.04592962]
[1767538250073,0.0109571,91265.0,91260.0,0.04603762]
[1767538250273,0.06574212,91266.0,91262.0,0.04603762]
[1767538250647,0.0657419,91266.0,91263.0,0.04603762]
[1767538251134,0.01095638,91271.0,91264.0,0.05699484]
[1767538251135,0.05478267,91270.0,91264.0,0.05699484]
[1767538251327,0.05478266,91270.0,91267.0,0.04603762]
[1767538251568,0.05478266,91270.0,91266.0,0.06674075]
[1767538251778,0.06573767,91272.0,91268.0,0.04603762]
[1767538251994,0.01095626,91272.0,91269.0,0.04603762]
[1767538252210,0.06573766,91272.0,91268.0,0.0547837]
[1767538252388,0.01095638,91271.0,91268.0,0.06795762]
[1767538252617,0.05478311,91269.0,91268.0,0.06795762]
[1767538252828,0.05478311,91269.0,91260.0,0.35468323]
[1767538252829,0.01095722,91264.0,91260.0,0.05699532]
[1767538253040,0.01095674,91268.0,91266.0,0.02192]
[1767538253261,0.06574117,91267.0,91266.0,0.02192]
[1767538253678,0.05478431,91267.0,91266.0,0.02192]
[1767538254289,0.01095686,91267.0,91260.0,0.0109577]
[1767538254492,0.01095734,91263.0,91260.0,0.02192]
[1767538254692,0.06574374,91264.0,91260.0,0.02192]
[1767538254870,0.06574405,91263.0,91260.0,0.02192]
[1767538255046,0.01095734,91263.0,91260.0,0.02192]
[1767538255389,0.06574335,91264.0,91260.0,0.02192]
[1767538255754,0.01095734,91263.0,91260.0,0.02192]
[1767538256188,0.01095758,91261.0,91257.0,0.01095806]
[1767538256330,0.06574606,91261.0,91257.0,0.02192]
[1767538256535,0.06574649,91260.0,91257.0,0.02192]
[1767538256731,0.06574606,91261.0,91257.0,0.02192]
[1767538257170,0.01095734,91263.0,91261.0,0.000999]
[1767538257446,0.06574477,91262.0,91258.0,0.01095794]
[1767538257646,0.0657441,91263.0,91258.0,0.06574754]
[1767538257866,0.01095734,91263.0,91259.0,0.06574692]
[1767538258092,0.01095746,91262.0,91258.0,0.06574762]
[1767538258495,0.00995846,91262.0,91257.0,0.08766836]
[1767538258716,0.00995846,91262.0,91257.0,0.06574836]
[1767538258895,0.06574536,91262.0,91257.0,0.06574832]
[1767538259097,0.06574536,91262.0,91258.0,0.0657474]
[1767538259307,0.01095722,91264.0,91260.0,0.0109577]
[1767538259511,0.06574276,91265.0,91260.0,0.06574621]
[1767538259800,0.06574276,91265.0,91261.0,0.06574528]
[1767538260131,0.06574199,91266.0,91262.0,0.01095746]
[1767538260336,0.01095638,91271.0,91267.0,0.05478425]
[1767538260537,0.01095638,91271.0,91267.0,0.05473995]
[1767538260741,0.06573803,91273.0,91266.0,0.01095698]
[1767538260742,0.01095614,91273.0,91268.0,0.01095674]
[1767538261098,0.06573771,91272.0,91268.0,0.01095674]
[1767538261390,0.0109565,91270.0,91266.0,0.01095698]
[1767538261631,0.0109565,91270.0,91257.0,0.21916018]
[1767538261632,0.04773025,91259.0,91246.0,0.05479691]
[1767538261810,0.06575324,91251.0,91246.0,0.06575602]
[1767538262051,0.06575345,91250.0,91246.0,0.01095938]
[1767538262290,0.06575236,91253.0,91246.0,0.06575573]
[1767538262503,0.06575236,91253.0,91248.0,0.06575485]
[1767538262667,0.05868879,91253.0,91248.0,0.06575485]
[1767538263059,0.05868879,91253.0,91248.0,0.01095914]
[1767538263060,0.01095866,91252.0,91248.0,0.01095914]
[1767538263257,0.01095866,91252.0,91248.0,0.06575471]
[1767538263459,0.06575201,91252.0,91248.0,0.01095914]
[1767538264082,0.06575201,91252.0,91248.0,0.01091484]
[1767538264289,0.06575176,91253.0,91249.0,0.05479512]
[1767538264739,0.01095854,91253.0,91249.0,0.06575414]
[1767538265015,0.01095866,91252.0,91248.0,0.01091484]
[1767538265223,0.06575323,91251.0,91247.0,0.01095926]
[1767538265380,0.000999,91248.0,91245.0,0.06575688]
[1767538265579,0.000999,91248.0,91245.0,0.0109595]
[1767538265777,0.0109589,91250.0,91244.0,0.01095962]
[1767538266164,0.0657544,91249.0,91245.0,0.06575689]
[1767538266376,0.0657546,91250.0,91246.0,0.06575618]
[1767538267095,0.0657546,91250.0,91246.0,0.01095938]
[1767538267296,0.000999,91246.0,91242.0,0.06627173]
[1767538267551,0.05479701,91246.0,91242.0,0.01147274]
[1767538267871,0.06575705,91245.0,91242.0,0.00051288]
[1767538268267,0.01095998,91241.0,91236.0,0.02196]
[1767538268503,0.01096082,91234.0,91230.0,0.0109613]
[1767538268703,0.01096094,91233.0,91229.0,0.01096142]
[1767538268856,0.01096058,91236.0,91230.0,0.0109613]
[1767538269287,0.01096058,91236.0,91232.0,0.05480524]
[1767538269711,0.06576351,91236.0,91231.0,0.06576685]
[1767538269873,0.01096058,91236.0,91232.0,0.0548052]
[1767538270368,0.0109607,91235.0,91232.0,0.00010823]
[1767538270595,0.0109607,91235.0,91232.0,6.393e-05]
[1767538270995,0.05480473,91233.0,91232.0,9.3e-07]
[1767538271964,0.05480473,91233.0,91212.0,0.0788094]
[1767538271965,0.05480792,91228.0,91223.0,0.06577281]
[1767538272175,0.05491601,91228.0,91223.0,0.06577281]
[1767538272379,0.01106963,91228.0,91224.0,0.01096202]
[1767538272605,0.11307536,91228.0,91219.0,0.1890917]
[1767538272810,0.04773025,91227.0,91219.0,0.1890917]
[1767538273024,0.04773025,91227.0,91220.0,0.21925016]
[1767538273225,0.04773025,91227.0,91224.0,0.01096202]
[1767538273470,0.04766725,91227.0,91225.0,0.05480953]
[1767538273658,0.04766725,91227.0,91226.0,0.05480893]
[1767538273864,0.04766725,91227.0,91225.0,0.05480953]
[1767538274008,0.04766725,91227.0,91224.0,0.06577213]
[1767538274451,0.04773025,91226.0,91222.0,0.06577328]
[1767538274599,0.01096154,91228.0,91223.0,0.01096214]
[1767538274951,0.01096154,91228.0,91223.0,0.06577283]
[1767538275107,0.01096106,91232.0,91226.0,0.01096178]
[1767538275511,0.0109613,91230.0,91226.0,0.06577071]
[1767538275910,0.01096118,91231.0,91226.0,0.06577071]
[1767538276751,0.06576741,91231.0,91226.0,0.06577071]
[1767538279603,0.000999,91226.0,91224.0,0.06577215]
[1767538279830,0.00095377,91226.0,91224.0,0.06577215]
[1767538280109,0.01096154,91228.0,91224.0,0.06577215]
[1767538280308,0.01096178,91226.0,91222.0,0.05481124]
[1767538280451,0.0657709,91226.0,91221.0,0.0657742]
[1767538280657,0.0109619,91225.0,91221.0,0.01096238]
[1767538280857,0.06577163,91225.0,91221.0,0.01096238]
[1767538281098,0.01096166,91227.0,91223.0,0.06577263]
[1767538281276,0.06577019,91227.0,91223.0,0.01096214]
[1767538281474,0.06577019,91227.0,91222.0,0.065773]
[1767538281680,0.01096166,91227.0,91223.0,0.06577286]
[1767538282114,0.06577006,91227.0,91223.0,0.01096214]
[1767538282481,0.06577006,91227.0,91222.0,0.065773]
[1767538282681,0.06577006,91227.0,91223.0,0.01096214]
[1767538282979,0.06577097,91226.0,91222.0,0.01096226]
[1767538283175,0.01096178,91226.0,91222.0,0.01096226]
[1767538283660,0.06577006,91227.0,91223.0,0.0657728]
[1767538283858,0.06577006,91227.0,91223.0,0.01096214]
[1767538284274,0.01096178,91226.0,91222.0,0.06577344]
[1767538284481,0.06577006,91227.0,91222.0,0.06577344]
[1767538284689,0.06577006,91227.0,91223.0,0.01096214]
[1767538284959,0.06577006,91227.0,91222.0,0.06577344]
[1767538285255,0.06577084,91226.0,91222.0,0.06577344]
[1767538286256,0.06577006,91227.0,91223.0,0.0657728]
[1767538286635,0.06577006,91227.0,91222.0,0.06577344]
[1767538287103,0.01096178,91226.0,91222.0,0.06577344]
[1767538287978,0.06577083,91226.0,91221.0,0.01096238]
[1767538288179,0.06577083,91226.0,91222.0,0.01096226]
[1767538288811,0.01096178,91226.0,91222.0,0.06577346]
[1767538289005,0.06577006,91227.0,91223.0,0.01096214]
[1767538289217,0.06577006,91227.0,91223.0,0.06577281]
[1767538289417,0.01096154,91228.0,91224.0,0.06577184]
[1767538289827,0.01096166,91227.0,91223.0,0.06577281]
[1767538291877,0.06577072,91226.0,91220.0,0.0109625]
[1767538292078,0.06577072,91226.0,91219.0,0.07677302]
[1767538292079,0.000954,91223.0,91219.0,0.08773564]
[1767538292469,0.06577219,91224.0,91219.0,0.08773564]
[1767538292669,0.06577219,91224.0,91220.0,0.06577492]
[1767538293180,0.06577219,91224.0,91220.0,0.0109625]
[1767538293181,0.01096202,91224.0,91220.0,0.0109625]
[1767538293555,0.0657729,91223.0,91219.0,0.08773564]
[1767538294171,0.01096214,91223.0,91219.0,0.08773564]
[1767538294383,0.0109619,91225.0,91223.0,4.5e-05]
[1767538294592,0.06577154,91225.0,91223.0,4.5e-05]
[1767538294805,0.06577154,91225.0,91221.0,0.06577406]
[1767538295774,0.06576977,91228.0,91222.0,0.01096226]
[1767538295979,0.05480893,91226.0,91225.0,4.5e-05]
[1767538296218,0.05480893,91226.0,91223.0,0.01096214]
[1767538296773,0.06577,91227.0,91223.0,0.01096214]
[1767538296965,0.01096118,91231.0,91226.0,0.01096178]
[1767538297532,0.06576815,91230.0,91225.0,0.06577027]
[1767538297732,0.06576891,91229.0,91224.0,0.06577201]
[1767538299187,0.06576941,91228.0,91223.0,0.0657723]
[1767538300239,0.06577002,91227.0,91223.0,0.0657723]
[1767538302006,0.06577,91227.0,91223.0,0.0657723]
[1767538302524,0.06577,91227.0,91222.0,0.06577356]
[1767538302871,0.0657711,91226.0,91222.0,0.06577356]
[1767538306862,0.0109619,91225.0,91215.0,0.0788094]
[1767538307035,0.01096286,91217.0,91214.0,0.02196]
[1767538307354,0.01096346,91212.0,91208.0,0.06578356]
[1767538307938,0.06578056,91213.0,91209.0,0.05481914]
[1767538308135,0.06578056,91213.0,91209.0,0.06578297]
[1767538308336,0.01096346,91212.0,91208.0,0.06578356]
[1767538308519,0.06578105,91212.0,91208.0,0.01096395]
[1767538308854,0.06578056,91213.0,91212.0,0.000999]
[1767538309152,0.06578056,91213.0,91209.0,0.01096383]
[1767538309653,0.06578056,91213.0,91209.0,0.06578282]
[1767538309854,0.06478156,91213.0,91209.0,0.06578282]
[1767538310427,0.01096322,91214.0,91210.0,0.06578199]
[1767538310630,0.06577949,91214.0,91210.0,0.01096371]
[1767538312424,0.04620049,91214.0,91210.0,0.01096371]
[1767538313090,0.03292262,91219.0,91215.0,0.04867685]
[1767538313284,0.08773625,91219.0,91215.0,0.04867685]
[1767538313460,0.08773625,91219.0,91214.0,0.05481608]
[1767538313666,0.08773625,91219.0,91214.0,0.05481594]
[1767538314181,0.01096286,91217.0,91212.0,0.05481732]
[1767538314403,0.000999,91214.0,91213.0,0.01096334]
[1767538314697,0.06577666,91218.0,91213.0,0.06577954]
[1767538314902,0.06577666,91218.0,91214.0,0.01096322]
[1767538315680,0.01026063,91217.0,91214.0,0.01096322]
[1767538315892,0.01026063,91216.0,91214.0,0.01096322]
[1767538316108,0.01026063,91215.0,91214.0,0.01096322]
[1767538316791,0.01026063,91215.0,91212.0,0.06578078]
[1767538317003,0.01026063,91214.0,91213.0,0.0548163]
[1767538317809,0.01026063,91214.0,91213.0,0.01919626]
[1767538318212,0.01026063,91214.0,91213.0,0.01096334]
[1767538318613,0.00255577,91214.0,91213.0,0.06577964]
[1767538318821,0.08773461,91221.0,91218.0,0.04867685]
[1767538319016,0.0109625,91220.0,91216.0,0.04867685]
[1767538319261,0.0109625,91220.0,91216.0,0.06577772]
[1767538319413,0.06577461,91221.0,91216.0,0.06577772]
[1767538319847,0.06577461,91221.0,91216.0,0.04084372]
[1767538320316,0.06577461,91221.0,91216.0,0.0518067]
[1767538320496,0.06577461,91221.0,91216.0,0.0339967]
[1767538320986,0.01096226,91222.0,91219.0,0.04649367]
[1767538321127,0.01096226,91222.0,91218.0,0.05481327]
[1767538321128,0.0657737,91222.0,91218.0,0.05481327]
[1767538321335,0.0657734,91223.0,91219.0,0.01096262]
[1767538321534,0.0657734,91223.0,91218.0,0.06577601]
[1767538321737,0.06577385,91222.0,91217.0,0.06577602]
[1767538322549,0.25215265,91228.0,91218.0,0.01096274]
[1767538322550,0.01096154,91228.0,91218.0,0.01096274]
[1767538322758,0.00010813,91228.0,91223.0,0.01096214]
[1767538322881,0.00010813,91228.0,91225.0,0.05480903]
[1767538323088,0.00010813,91228.0,91225.0,0.0109619]
[1767538323389,0.00010813,91228.0,91224.0,0.05481013]
[1767538323593,0.00010813,91228.0,91225.0,0.0109619]
[1767538323793,0.00010813,91228.0,91225.0,0.05480898]
[1767538324230,0.00010813,91228.0,91224.0,0.05480987]
[1767538324604,0.00010813,91228.0,91226.0,0.05480866]
[1767538324840,0.00010813,91228.0,91226.0,0.0383806]
[1767538325457,0.00010813,91228.0,91226.0,0.08487427]
[1767538326942,0.01096046,91237.0,91230.0,0.0109613]
[1767538327151,0.01096046,91237.0,91228.0,0.21922893]
[1767538327152,0.05480001,91241.0,91234.0,0.05480412]
[1767538327434,0.06576002,91241.0,91236.0,0.01096058]
[1767538327631,0.06575991,91241.0,91237.0,0.01096046]
[1767538327838,0.06575976,91242.0,91237.0,0.06576278]
[1767538328087,0.01095998,91241.0,91236.0,0.0657634]
[1767538328221,0.0109601,91240.0,91235.0,0.06576387]
[1767538328689,0.01096022,91239.0,91235.0,0.0109607]
[1767538328993,0.01096022,91239.0,91233.0,0.05480435]
[1767538329358,0.06576073,91240.0,91235.0,0.06576408]
[1767538329573,0.06575892,91243.0,91238.0,0.01096034]
[1767538329773,0.01095974,91243.0,91238.0,0.0548017]
[1767538329991,0.01095986,91242.0,91238.0,0.01096034]
[1767538330162,0.01095974,91243.0,91238.0,0.06576193]
[1767538330493,0.01095974,91243.0,91238.0,0.04795464]
[1767538330699,0.06575859,91243.0,91237.0,0.05206873]
[1767538331174,0.06575851,91243.0,91237.0,0.05206873]
[1767538332110,0.01095974,91243.0,91239.0,0.01096022]
[1767538332312,0.06575853,91243.0,91238.0,0.01096034]
[1767538332535,0.01095974,91243.0,91238.0,0.06576183]
[1767538332708,0.0004,91380.0,91238.0,0.06576183]
[1767538332709,0.04725434,91257.0,91238.0,0.04649367]
[1767538332907,0.06575321,91251.0,91238.0,0.05480112]
[1767538333118,0.01095878,91251.0,91245.0,0.0109595]
[1767538333325,0.00051285,91253.0,91248.0,0.01095914]
[1767538333468,0.00051285,91253.0,91249.0,0.01095902]
[1767538333680,0.00051285,91253.0,91250.0,0.0109589]